bitfinex-derivatives/quotes_BNBF0:USTF0_20250406
["timestamp","ask_amount","ask_price","bid_price","bid_amount"]
[1743938778121,0.58089124,588.34,587.63,0.28491371]
[1743938778322,0.586,588.38,587.63,0.28491371]
[1743938778524,0.58077903,588.37,587.63,0.28491371]
[1743938778722,0.58077903,588.36,587.63,0.28491371]
[1743938778924,0.58077903,588.35,587.63,0.28491371]
[1743938779116,0.58077903,588.34,587.63,0.28491371]
[1743938779422,0.586,588.38,587.63,0.28491371]
[1743938779617,0.58073958,588.37,587.63,0.28491371]
[1743938779818,0.58073958,588.36,587.63,0.28491371]
[1743938780022,0.58073958,588.35,587.63,0.28491371]
[1743938780220,0.58073958,588.34,587.63,0.28491371]
[1743938780426,0.58073958,588.33,587.62,0.34035601]
[1743938780724,0.586,588.38,587.63,0.2849134]
[1743938780929,0.58070205,588.37,587.63,0.2849134]
[1743938781121,0.58070205,588.36,587.63,0.2849134]
[1743938781327,0.58069059,588.35,587.63,0.2849134]
[1743938781524,0.58069059,588.34,587.63,0.2849134]
[1743938781726,0.581,588.39,587.62,0.34035601]
[1743938784129,0.623,588.38,587.62,0.34035601]
[1743938784330,0.623,588.38,587.63,0.28485797]
[1743938784630,0.623,588.38,587.64,0.28485959]
[1743938784925,0.623,588.38,587.63,0.28485959]
[1743938785127,0.623,588.38,587.64,0.28485959]
[1743938785328,0.623,588.38,587.63,0.28485959]
[1743938785527,0.623,588.38,587.62,0.34035601]
[1743938785723,0.623,588.38,587.63,0.28485933]
[1743938787331,0.623,588.38,587.64,0.28485836]
[1743938787525,0.623,588.38,587.63,0.28485836]
[1743938789332,0.623,588.38,587.65,1.27319059]
[1743938789533,0.623,588.38,587.66,0.28485836]
[1743938794034,0.623,588.38,587.62,0.34035601]
[1743938794035,0.623,588.38,587.63,0.28485836]
[1743938794235,0.623,588.38,587.62,0.34035601]
[1743938794535,0.623,588.38,587.63,0.28485463]
[1743938794735,0.623,588.38,587.63,0.62520485]
[1743938794933,0.623,588.38,587.64,0.28485463]
[1743938796133,0.581,588.39,587.64,0.28485463]
[1743938796731,0.58078823,588.52,587.64,0.28485463]
[1743938796932,0.58078823,588.51,587.64,0.28485463]
[1743938797130,0.58078823,588.5,587.64,0.28485463]
[1743938797333,0.58078823,588.49,587.64,0.28485463]
[1743938797535,0.58079336,588.48,587.64,0.28485463]
[1743938797736,0.58079336,588.47,587.63,0.34035022]
[1743938797934,0.58079336,588.46,587.64,0.28483638]
[1743938798133,0.29579261,588.62,587.64,0.28483638]
[1743938798332,0.58078045,588.61,587.64,0.28483638]
[1743938798532,0.58078045,588.6,587.64,0.28483638]
[1743938798836,0.58078045,588.59,587.64,0.28483638]
[1743938799036,0.58078045,588.58,587.64,0.28483638]
[1743938799233,0.58078045,588.57,587.64,0.28483638]
[1743938799438,0.58078045,588.56,587.63,0.34035022]
[1743938799638,0.58078045,588.57,587.65,0.28483667]
[1743938799831,0.58078045,588.57,587.63,0.34035022]
[1743938799832,0.58078045,588.57,587.66,0.28483667]
[1743938800036,0.58079537,588.57,587.67,0.28483667]
[1743938800233,0.58079537,588.57,587.64,0.28483667]
[1743938800437,0.63,588.58,587.64,0.28483667]
[1743938801336,0.58079625,588.57,587.65,0.28482881]
[1743938801537,0.58079926,588.57,587.64,0.28482881]
[1743938801738,0.58079926,588.57,587.65,0.28482881]
[1743938802137,0.58078668,588.57,587.66,0.28482881]
[1743938802338,0.58078668,588.57,587.64,0.28482881]
[1743938802537,0.58078668,588.57,587.67,0.28482881]
[1743938802739,0.58078668,588.57,587.68,0.28482881]
[1743938802943,0.58078668,588.57,587.64,0.28482881]
[1743938803142,0.58078668,588.57,587.65,0.28482881]
[1743938803337,0.58078668,588.57,587.64,0.28482881]
[1743938804540,0.58078128,588.57,587.64,0.28482881]
[1743938805440,0.58078128,588.56,587.64,0.28482881]
[1743938805643,0.58078128,588.55,587.64,0.28482881]
[1743938805939,0.58078128,588.54,587.64,0.28482881]
[1743938806142,0.58078128,588.53,587.64,0.28482881]
[1743938806343,0.58078128,588.52,587.64,0.28482881]
[1743938806543,0.58078128,588.51,587.64,0.28482881]
[1743938806839,0.58078128,588.5,587.64,0.28482881]
[1743938807045,0.58078128,588.49,587.64,0.28482881]
[1743938807241,0.58078128,588.48,587.64,0.28482881]
[1743938807440,0.63,588.58,587.64,0.28482881]
[1743938807646,0.58079811,588.57,587.64,0.28482881]
[1743938807845,0.58079811,588.56,587.64,0.28482881]
[1743938808144,0.58079811,588.55,587.64,0.28482881]
[1743938808346,0.58079811,588.54,587.64,0.28482881]
[1743938808545,0.58079811,588.53,587.64,0.28482881]
[1743938808745,0.58079811,588.52,587.64,0.28482881]
[1743938808947,0.58079811,588.51,587.64,0.28482881]
[1743938809140,0.58079811,588.5,587.64,0.28482881]
[1743938809346,0.58079811,588.49,587.64,0.28482881]
[1743938809543,0.58079811,588.48,587.64,0.28482881]
[1743938809747,0.63,588.58,587.64,0.28482881]
[1743938809947,0.58077592,588.57,587.64,0.28482881]
[1743938810149,0.58077592,588.56,587.64,0.28482881]
[1743938810344,0.58077592,588.55,587.64,0.28482881]
[1743938810547,0.58077592,588.54,587.64,0.28482881]
[1743938810847,0.58077592,588.53,587.64,0.28482881]
[1743938811148,0.58077592,588.52,587.64,0.28482881]
[1743938811348,0.58077592,588.51,587.64,0.28482881]
[1743938811549,0.58077592,588.5,587.64,0.28482881]
[1743938811850,0.58077592,588.49,587.79,1.27319059]
[1743938812148,0.63,588.58,587.8,0.28482881]
[1743938812345,0.58077378,588.57,587.8,0.28482881]
[1743938812550,0.58077378,588.56,587.8,0.28482881]
[1743938812751,0.58077378,588.55,587.8,0.28482881]
[1743938812949,0.58077378,588.54,587.8,0.28482881]
[1743938813150,0.58077378,588.53,587.8,0.28482881]
[1743938813345,0.58077378,588.57,587.8,0.28482881]
[1743938813546,0.58077378,588.56,587.8,0.28482881]
[1743938813745,0.58077378,588.55,587.8,0.28482881]
[1743938814047,0.58077378,588.57,587.87,1.27319059]
[1743938814248,0.63,588.58,587.87,1.27319059]
[1743938814249,0.58077378,588.56,587.88,0.28482881]
[1743938814450,0.58077378,588.55,587.88,0.28482881]
[1743938814653,0.58077378,588.57,587.88,0.28482881]
[1743938814853,0.58077378,588.56,587.88,0.28482881]
[1743938815051,0.58077378,588.55,587.88,0.28482881]
[1743938815254,0.58077378,588.57,587.88,0.28482881]
[1743938815453,0.58077378,588.56,587.88,0.28482881]
[1743938815653,0.58077378,588.55,587.87,1.27319059]
[1743938815954,0.58077378,588.57,587.88,0.28483158]
[1743938816148,0.58077378,588.56,587.88,0.28483158]
[1743938816350,0.58077378,588.57,587.83,0.28483158]
[1743938816549,0.58077378,588.56,587.83,0.28483158]
[1743938816748,0.58077378,588.55,587.83,0.28483158]
[1743938816949,0.58077378,588.57,587.83,0.28483158]
[1743938817251,0.58067698,588.56,587.83,0.28483158]
[1743938817450,0.58067698,588.57,587.83,0.28483158]
[1743938817649,0.58067698,588.56,587.83,0.28483158]
[1743938817853,0.58067698,588.55,587.83,0.28483158]
[1743938818050,0.58067698,588.54,587.83,0.28483158]
[1743938818255,0.58067698,588.53,587.83,0.28483158]
[1743938818452,0.58067698,588.52,587.86,1.27319059]
[1743938818757,0.58067698,588.51,587.86,1.27319059]
[1743938818957,0.58067698,588.5,587.86,1.27319059]
[1743938819157,0.63,588.58,587.86,1.27319059]
[1743938819158,0.58067698,588.57,587.86,1.27319059]
[1743938819353,0.58067698,588.56,587.86,1.27319059]
[1743938819657,0.58067698,588.55,587.86,1.27319059]
[1743938819858,0.58067698,588.54,587.86,1.27319059]
[1743938820060,0.58067698,588.53,587.86,1.27319059]
[1743938820258,0.29578632,588.55,587.86,1.27319059]
[1743938820259,0.58067698,588.52,587.86,1.27319059]
[1743938820461,0.58067698,588.51,587.63,1.61354081]
[1743938820662,0.58067698,588.5,587.64,0.28485684]
[1743938820857,0.58067698,588.49,587.64,0.28485684]
[1743938821061,0.58067698,588.48,587.64,0.28485684]
[1743938821260,0.58067698,588.47,587.64,0.28485684]
[1743938821556,0.58067698,588.46,587.64,0.28485684]
[1743938821761,0.58067698,588.45,587.64,0.28485684]
[1743938821962,0.58067698,588.44,587.64,0.28485684]
[1743938822156,0.58067698,588.43,587.64,0.28485684]
[1743938822360,0.63,588.58,587.64,0.28485684]
[1743938822562,0.58067621,588.57,587.64,0.28485684]
[1743938822860,0.58067621,588.56,587.64,0.28485684]
[1743938823057,0.58067621,588.55,587.63,1.61354081]
[1743938823264,0.58067621,588.54,587.64,0.28485683]
[1743938823462,0.58067621,588.53,587.64,0.28485683]
[1743938823663,0.58067621,588.52,587.64,0.28485683]
[1743938823858,0.58067621,588.51,587.64,0.28485683]
[1743938824060,0.58067621,588.5,587.64,0.28485683]
[1743938824262,0.58067621,588.49,587.64,0.28485683]
[1743938824462,0.58067621,588.48,587.64,0.28485683]
[1743938824659,0.58067621,588.47,587.64,0.28485683]
[1743938824863,0.58067621,588.46,587.64,0.28485683]
[1743938825057,0.58067621,588.45,587.64,0.28485683]
[1743938825261,0.58067621,588.44,587.64,0.28485683]
[1743938825461,0.58067621,588.43,587.64,0.28485683]
[1743938825661,0.58067621,588.42,587.64,0.28485683]
[1743938825862,0.63,588.58,587.64,0.28485683]
[1743938826162,0.29581523,588.55,587.64,0.28485683]
[1743938826363,0.58078341,588.54,587.64,0.28485683]
[1743938826560,0.58078341,588.53,587.64,0.28485683]
[1743938826766,0.58078341,588.52,587.64,0.28485683]
[1743938827065,0.58078341,588.51,587.64,0.28485683]
[1743938827265,0.58078341,588.5,587.64,0.28485683]
[1743938827466,0.58078341,588.49,587.64,0.28485683]
[1743938827666,0.58084784,588.48,587.64,0.28485683]
[1743938827965,0.58084784,588.47,587.64,0.28485683]
[1743938828168,0.58084784,588.46,587.64,0.28485683]
[1743938828362,0.63,588.58,587.64,0.28485683]
[1743938828363,0.58084784,588.45,587.67,1.27319059]
[1743938828562,0.58084784,588.44,587.68,0.28485683]
[1743938828766,0.63,588.58,587.68,0.28485683]
[1743938828963,0.29581021,588.55,587.68,0.28485683]
[1743938829161,0.58089617,588.54,587.68,0.28485683]
[1743938829366,0.58089617,588.53,587.68,0.28485683]
[1743938829561,0.58089617,588.52,587.68,0.28485683]
[1743938829765,0.58089617,588.51,587.68,0.28485683]
[1743938829966,0.58089617,588.5,587.68,0.28485683]
[1743938830162,0.58089617,588.49,587.68,0.28485683]
[1743938830361,0.58089617,588.48,587.68,0.28485683]
[1743938830665,0.58089617,588.47,587.77,1.27319059]
[1743938830866,0.58089617,588.46,587.78,0.28485507]
[1743938831060,0.58089617,588.45,587.78,0.28485507]
[1743938831260,0.58089617,588.44,587.78,0.28485507]
[1743938831460,0.58089617,588.43,587.78,0.28485507]
[1743938831661,0.58109687,588.42,587.78,0.28485507]
[1743938831966,0.572,588.48,587.79,0.28485773]
[1743938832162,0.58109923,588.47,587.78,0.28485773]
[1743938832362,0.58109923,588.46,587.78,0.28485773]
[1743938832664,0.58109923,588.45,587.78,0.28485773]
[1743938832865,0.58109923,588.44,587.88,1.27319059]
[1743938833065,0.58109923,588.43,587.89,0.28485773]
[1743938833263,0.58109923,588.42,587.89,0.28485773]
[1743938833567,0.58109923,588.41,587.89,0.28485773]
[1743938833762,0.572,588.48,587.89,0.28485773]
[1743938833964,0.58128545,588.47,587.89,0.28485773]
[1743938834162,0.58128545,588.46,587.89,0.28485773]
[1743938834367,0.58128545,588.45,587.89,0.28485773]
[1743938834561,0.58128545,588.44,587.89,0.28485773]
[1743938834762,0.58128545,588.43,587.88,1.27319059]
[1743938835063,0.58128545,588.42,587.83,1.27319059]
[1743938835261,0.58128545,588.41,587.83,1.27319059]
[1743938835464,0.58128545,588.4,587.83,1.27319059]
[1743938835665,0.58128545,588.39,587.83,1.27319059]
[1743938835867,0.58128545,588.38,587.83,1.27319059]
[1743938836066,0.58128545,588.37,587.83,1.27319059]
[1743938836262,0.58128545,588.36,587.83,1.27319059]
[1743938836460,0.58128545,588.35,587.83,1.27319059]
[1743938836665,0.572,588.48,587.83,1.27319059]
[1743938836965,0.58142857,588.47,587.84,0.28490104]
[1743938837160,0.58142857,588.46,587.84,0.28490104]
[1743938837361,0.58142857,588.45,587.84,0.28490104]
[1743938837567,0.58145059,588.44,587.64,0.28490104]
[1743938837766,0.58145059,588.43,587.65,0.28490104]
[1743938837965,0.58145059,588.42,587.64,0.28490104]
[1743938838164,0.58145059,588.41,587.64,0.28490104]
[1743938838363,0.58145059,588.4,587.64,0.28490104]
[1743938838564,0.58145059,588.39,587.64,0.28490104]
[1743938838763,0.58145059,588.38,587.64,0.28490104]
[1743938838968,0.58145059,588.37,587.65,1.27319059]
[1743938839168,0.58145059,588.36,587.65,1.27319059]
[1743938839363,0.58145059,588.35,587.66,0.28490104]
[1743938839567,0.572,588.48,587.66,0.28490104]
[1743938839771,0.58146372,588.47,587.66,0.28490104]
[1743938839969,0.58146372,588.46,587.66,0.28490104]
[1743938840166,0.58146372,588.45,587.66,0.28490104]
[1743938840469,0.58146372,588.44,587.67,0.28492726]
[1743938840669,0.58146372,588.43,587.67,0.28492726]
[1743938840869,0.58146372,588.42,587.68,0.28492726]
[1743938841071,0.58146372,588.41,587.65,1.27319059]
[1743938841267,0.58146372,588.4,587.71,1.27319059]
[1743938841465,0.58146372,588.39,587.71,1.27319059]
[1743938841669,0.58146372,588.38,587.71,1.27319059]
[1743938841965,0.58146372,588.37,587.71,1.27319059]
[1743938842165,0.58146372,588.36,587.71,1.27319059]
[1743938842368,0.58121561,588.35,587.71,1.27319059]
[1743938842571,0.58121561,588.34,587.71,1.27319059]
[1743938842771,0.58121561,588.33,587.71,1.27319059]
[1743938842970,0.58121561,588.32,587.71,1.27319059]
[1743938843266,0.58121561,588.31,587.71,1.27319059]
[1743938843464,0.58121561,588.3,587.71,1.27319059]
[1743938843669,0.58121561,588.29,587.63,0.34035022]
[1743938843972,0.58121561,588.28,587.64,0.28494123]
[1743938844171,0.58121561,588.27,587.64,0.28494123]
[1743938844471,0.58121561,588.26,587.64,0.28494123]
[1743938844670,0.58121561,588.25,587.64,0.28494123]
[1743938844865,0.2958429,588.4,587.64,0.28494123]
[1743938845067,0.58095256,588.39,587.64,0.28494123]
[1743938845267,0.58095256,588.38,587.64,0.28494123]
[1743938845470,0.58095256,588.37,587.64,0.28494123]
[1743938845665,0.58095256,588.36,587.64,0.28494123]
[1743938845870,0.58095256,588.35,587.64,0.28494123]
[1743938846065,0.58086485,588.34,587.64,0.28494123]
[1743938846371,0.58086485,588.33,587.64,0.28494123]
[1743938846570,0.58086485,588.32,587.64,0.28494123]
[1743938846871,0.58086485,588.31,587.64,0.28494123]
[1743938847071,0.58086485,588.3,587.64,0.28494123]
[1743938847269,0.58086485,588.3,587.63,0.34035022]
[1743938847270,0.58086485,588.29,587.63,0.34035022]
[1743938847470,0.641,588.33,587.64,0.28494083]
[1743938847664,0.58071225,588.32,587.64,0.28494083]
[1743938847971,0.58071042,588.31,587.64,0.28494083]
[1743938848165,0.58071042,588.3,587.64,0.28494083]
[1743938848366,1.298,588.33,587.64,0.28494083]
[1743938848571,0.58065944,588.32,587.64,0.28494083]
[1743938848771,0.58065944,588.31,587.63,0.34035022]
[1743938849068,0.58065944,588.3,587.64,0.28492412]
[1743938849271,1.298,588.33,587.64,0.28492412]
[1743938849472,0.58063564,588.32,587.64,0.28492412]
[1743938849670,0.58063564,588.31,587.64,0.28492412]
[1743938849868,0.58063564,588.3,587.64,0.28492412]
[1743938850170,0.58059906,588.29,587.64,0.28492412]
[1743938850366,1.298,588.33,587.64,0.28492412]
[1743938850566,0.58056166,588.32,587.64,0.28492412]
[1743938850769,1.298,588.33,587.64,0.28492412]
[1743938852273,1.298,588.33,587.65,0.28492527]
[1743938852469,1.298,588.33,587.66,0.28492527]
[1743938852671,1.298,588.33,587.64,0.28492527]
[1743938852974,1.298,588.33,587.65,0.28492527]
[1743938853175,1.298,588.33,587.66,0.28492527]
[1743938853372,1.298,588.33,587.64,0.28492527]
[1743938853577,1.298,588.33,587.65,0.28492527]
[1743938853769,1.298,588.33,587.64,0.28492527]
[1743938853973,1.298,588.33,587.65,0.28492527]
[1743938854169,1.298,588.33,587.64,0.28492527]
[1743938854475,1.298,588.33,587.65,0.28492527]
[1743938854669,1.298,588.33,587.63,0.34035022]
[1743938854670,1.298,588.33,587.66,0.28492527]
[1743938854870,1.298,588.33,587.64,0.28492527]
[1743938855170,1.298,588.33,587.65,0.28492527]
[1743938855374,1.298,588.33,587.64,0.28492527]
[1743938858875,0.58030978,588.32,587.64,0.28492527]
[1743938859578,1.298,588.33,587.64,0.28492527]
[1743938859778,0.58029781,588.32,587.64,0.28492527]
[1743938860077,1.298,588.33,587.64,0.28492527]
[1743938860276,0.58029857,588.32,587.64,0.28492527]
[1743938860479,1.298,588.33,587.64,0.28492527]
[1743938860677,0.58029415,588.32,587.64,0.28492527]
[1743938860878,1.298,588.33,587.64,0.28492527]
[1743938861175,0.5802959,588.32,587.64,0.28492527]
[1743938861375,1.298,588.33,587.64,0.28492527]
[1743938861580,0.58028992,588.32,587.64,0.28492527]
[1743938861781,1.298,588.33,587.64,0.28492527]
[1743938861981,0.58032058,588.32,587.64,0.28492527]
[1743938862283,1.298,588.33,587.65,0.28492594]
[1743938862478,0.5803272,588.32,587.64,0.28492594]
[1743938862678,1.298,588.33,587.65,0.28492594]
[1743938862882,1.298,588.33,587.63,0.34035022]
[1743938862883,0.58032433,588.32,587.64,0.28492594]
[1743938863182,1.298,588.33,587.65,0.28492594]
[1743938863382,0.58032937,588.32,587.64,0.28492594]
[1743938863577,1.298,588.33,587.66,0.28492594]
[1743938863884,0.58034272,588.32,587.67,0.28492594]
[1743938864080,1.298,588.33,587.64,0.28492594]
[1743938864281,0.58033881,588.32,587.64,0.28492594]
[1743938864483,1.298,588.33,587.64,0.28492594]
[1743938864684,0.58035071,588.32,587.64,0.28492594]
[1743938864883,1.298,588.33,587.64,0.28492594]
[1743938865079,0.5803483,588.32,587.64,0.28492594]
[1743938865383,0.58036514,588.31,587.64,0.28492594]
[1743938865579,0.5803713,588.32,587.64,0.28492594]
[1743938865778,0.58035976,588.31,587.64,0.28492594]
[1743938865982,1.298,588.33,587.64,0.28492594]
[1743938869483,1.298,588.33,587.63,1.61354081]
[1743938869685,1.298,588.33,587.64,0.2849259]
[1743938870482,1.298,588.33,587.63,1.61354081]
[1743938870483,1.298,588.33,587.65,0.28492524]
[1743938870687,1.298,588.33,587.64,0.28492524]
[1743938873000,0.58035126,588.32,587.64,0.28492524]
[1743938873202,0.58035126,588.31,587.64,0.28492524]
[1743938873401,0.657,588.33,587.64,0.28492524]
[1743938873602,0.58054615,588.32,587.64,0.28492524]
[1743938873802,0.58054615,588.31,587.64,0.28492524]
[1743938874003,0.2958844,588.4,587.64,0.28492524]
[1743938874303,0.58054413,588.39,587.64,0.28492524]
[1743938874502,0.58054413,588.38,587.64,0.28492524]
[1743938874701,0.58054413,588.37,587.64,0.28492524]
[1743938875002,0.58054413,588.36,587.64,0.28492524]
[1743938875302,0.58054413,588.35,587.64,0.28492524]
[1743938875497,0.58054413,588.34,587.65,0.28492313]
[1743938875698,0.58054413,588.33,587.64,0.28492313]
[1743938876005,1.52702469,589.21,587.65,0.28492313]
[1743938876205,0.33946059,589.17,587.64,0.28492313]
[1743938876505,0.89314523,589.16,587.64,0.28492313]
[1743938876705,0.33947788,589.14,587.64,0.28492313]
[1743938876905,0.89314523,589.13,587.64,0.28492313]
[1743938877107,0.33949517,589.11,587.64,0.28492313]
[1743938877306,0.89314471,589.1,587.65,0.28490463]
[1743938877506,0.33951246,589.08,587.64,0.28490463]
[1743938877707,0.89314471,589.07,587.65,0.28490463]
[1743938877902,0.89314471,589.06,587.64,0.28490463]
[1743938878104,0.89314471,589.05,587.65,0.28490463]
[1743938878306,0.33954127,589.03,587.64,0.28490463]
[1743938878503,0.58069834,589.02,587.66,0.28490463]
[1743938878703,0.33955857,589.0,587.67,0.28490463]
[1743938878908,0.31244637,588.99,587.64,0.28490463]
[1743938879109,0.33957586,588.97,587.64,0.28490463]
[1743938879408,0.89340499,588.96,587.64,0.28490463]
[1743938879612,0.33959316,588.94,587.78,1.27319059]
[1743938879808,0.89340499,588.93,587.79,0.28490463]
[1743938880007,0.33961046,588.91,587.79,0.28490463]
[1743938880204,0.58095862,588.9,587.79,0.28490463]
[1743938880505,0.33962776,588.88,587.79,0.28490463]
[1743938880710,0.89340499,588.87,587.79,0.28490463]
[1743938880912,0.89340499,588.86,587.79,0.28490463]
[1743938881110,1.23305006,588.85,587.79,0.28490463]
[1743938881307,0.89340499,588.84,587.79,0.28490463]
[1743938881509,0.89340499,588.83,587.73,0.28490463]
[1743938881711,1.23306736,588.82,587.73,0.28490463]
[1743938882010,1.2332625,588.81,587.74,0.28488927]
[1743938882208,0.92083751,588.8,587.73,0.28488927]
[1743938882410,0.92084328,588.79,587.73,0.28488927]
[1743938882611,0.92084905,588.78,587.73,0.28488927]
[1743938882811,0.92085482,588.77,587.73,0.28488927]
[1743938883008,0.92086059,588.76,587.73,0.28488927]
[1743938883213,0.92086636,588.75,587.73,0.28488927]
[1743938883516,0.29579638,588.77,587.73,0.28488927]
[1743938883517,0.92087213,588.74,587.73,0.28488927]
[1743938883812,0.9208779,588.73,587.73,0.28488927]
[1743938884108,0.92088367,588.72,587.73,0.28488927]
[1743938884311,0.92088944,588.71,587.73,0.28488927]
[1743938884512,0.5811636,588.7,587.73,0.28488927]
[1743938884712,0.5811636,588.69,587.73,0.28488927]
[1743938884914,0.5811636,588.68,587.64,0.28488927]
[1743938885112,0.5811636,588.67,587.65,0.28488927]
[1743938885413,0.5811636,588.66,587.66,0.28488927]
[1743938885607,0.29581775,588.67,587.66,0.28488927]
[1743938885812,0.5813324,588.66,587.67,0.28488927]
[1743938886009,0.5813324,588.65,587.64,0.28488927]
[1743938886209,0.5813324,588.64,587.65,0.28488927]
[1743938886415,0.5813324,588.63,587.64,0.28488927]
[1743938886609,0.5813324,588.62,587.65,0.28488927]
[1743938886914,0.5813324,588.61,587.63,0.34035022]
[1743938887212,0.5813324,588.6,587.64,0.28488628]
[1743938887412,0.5813324,588.59,587.64,0.28488628]
[1743938887614,0.5813324,588.58,587.64,0.28488628]
[1743938887815,0.5813324,588.57,587.64,0.28488628]
[1743938888012,0.5813324,588.56,587.64,0.28488628]
[1743938888316,0.5813324,588.55,587.64,0.28488628]
[1743938888510,0.5813324,588.54,587.63,0.34035022]
[1743938888713,0.5813324,588.53,587.64,0.28488651]
[1743938888916,0.5813324,588.52,587.64,0.28488651]
[1743938889118,0.5813324,588.51,587.64,0.28488651]
[1743938889417,0.5813324,588.5,587.64,0.28488651]
[1743938889617,0.5813324,588.49,587.64,0.28488651]
[1743938889819,0.5813324,588.48,587.64,0.28488651]
[1743938890014,0.5813324,588.47,587.64,0.28488651]
[1743938890214,0.5813324,588.46,587.63,0.34035022]
[1743938890418,0.5813324,588.45,587.64,0.28488632]
[1743938890714,0.5813324,588.44,587.64,0.28488632]
[1743938890918,0.5813324,588.43,587.64,0.28488632]
[1743938891119,0.5813324,588.42,587.64,0.28488632]
[1743938891420,0.5813324,588.41,587.64,0.28488632]
[1743938891719,0.5813324,588.4,587.64,0.28488632]
[1743938891919,0.5813324,588.39,587.64,0.28488632]
[1743938892121,0.5813324,588.38,587.64,0.28488632]
[1743938892420,0.5813324,588.37,587.64,0.28488632]
[1743938892615,0.29581523,588.49,587.64,0.28488632]
[1743938892616,0.5813324,588.36,587.64,0.28488632]
[1743938892817,0.5813324,588.35,587.64,0.28488632]
[1743938893021,0.5813324,588.34,587.64,0.28488632]
[1743938893222,0.5813324,588.33,587.64,0.28488632]
[1743938893422,0.5813324,588.32,587.64,0.28488632]
[1743938893620,0.29581523,588.49,587.64,0.28488632]
[1743938893823,0.58180665,588.48,587.64,0.28488632]
[1743938894025,0.58180665,588.47,587.64,0.28488632]
[1743938894326,0.58180665,588.46,587.64,0.28488632]
[1743938894522,0.58180665,588.45,587.64,0.28488632]
[1743938894720,0.58180665,588.44,587.64,0.28488632]
[1743938894921,0.58182431,588.43,587.64,0.28488632]
[1743938895124,0.58182431,588.42,587.64,0.28488632]
[1743938895320,0.58182431,588.41,587.65,0.28482799]
[1743938895525,0.58182431,588.4,587.64,0.28482799]
[1743938895721,0.29579261,588.58,587.66,0.28482799]
[1743938896025,0.58173209,588.57,587.67,0.28482799]
[1743938896221,0.58173209,588.56,587.64,0.28482799]
[1743938896424,0.58173209,588.56,587.63,0.34035022]
[1743938896425,1.11573209,588.55,587.65,0.28482799]
[1743938896725,0.58165155,588.54,587.66,0.28482799]
[1743938896925,0.58165155,588.53,587.64,0.28482799]
[1743938897126,0.58165155,588.52,587.65,0.28483701]
[1743938897326,0.58165155,588.51,587.64,0.28483701]
[1743938897522,0.58165155,588.5,587.64,0.28483701]
[1743938897726,0.58165155,588.49,587.64,0.28483701]
[1743938897920,0.58165155,588.48,587.64,0.28483701]
[1743938898126,0.58165155,588.47,587.64,0.28483701]
[1743938898319,0.58165155,588.46,587.64,0.28483701]
[1743938898520,0.5815058,588.45,587.64,0.28483701]
[1743938898724,0.5815058,588.44,587.64,0.28483701]
[1743938898925,0.5815058,588.43,587.64,0.28483701]
[1743938899224,0.5815058,588.42,587.64,0.28483701]
[1743938899425,0.5815058,588.41,587.64,0.28483701]
[1743938899625,0.534,588.55,587.64,0.28483701]
[1743938899824,0.5814396,588.54,587.64,0.28483701]
[1743938900025,0.5814396,588.53,587.64,0.28483701]
[1743938900224,0.5814396,588.52,587.63,0.34035022]
[1743938900424,0.5814396,588.51,587.65,0.28481495]
[1743938900626,0.5814396,588.5,587.66,0.28481495]
[1743938900823,0.5814396,588.49,587.64,0.28481495]
[1743938901025,0.5814396,588.48,587.65,0.28481495]
[1743938901227,0.5814396,588.47,587.64,0.28481495]
[1743938901529,0.5814396,588.46,587.66,1.27319059]
[1743938901728,0.534,588.55,587.66,1.27319059]
[1743938901729,0.5814396,588.45,587.67,0.28481495]
[1743938901928,0.5814396,588.44,587.67,0.28481495]
[1743938902130,0.58134067,588.43,587.67,0.28481495]
[1743938902329,0.58134067,588.42,587.67,0.28481495]
[1743938902630,0.534,588.55,587.67,0.28481495]
[1743938902828,0.58129393,588.54,587.67,0.28481495]
[1743938903032,0.58129393,588.53,587.67,0.28481495]
[1743938903226,0.58129393,588.52,587.68,1.27319059]
[1743938903430,0.58129393,588.51,587.69,0.28481495]
[1743938903624,0.58129393,588.5,587.68,1.27319059]
[1743938903825,0.58129393,588.49,587.69,0.28477061]
[1743938904023,0.58129393,588.48,587.69,0.28477061]
[1743938904229,0.534,588.55,587.69,0.28477061]
[1743938904431,0.58124732,588.54,587.69,0.28477061]
[1743938904624,0.58124732,588.53,587.69,0.28477061]
[1743938904828,0.58124732,588.52,587.69,0.28477061]
[1743938905023,0.58124732,588.51,587.69,0.28477061]
[1743938905228,0.58124732,588.5,587.68,1.27319059]
[1743938905426,0.58124732,588.49,587.69,0.28476989]
[1743938905631,0.58124732,588.48,587.69,0.28476989]
[1743938905830,0.534,588.55,587.69,0.28476989]
[1743938905831,0.58114735,588.54,587.69,0.28476989]
[1743938906030,0.58114735,588.53,587.69,0.28476989]
[1743938906226,0.58114735,588.52,587.7,0.28476989]
[1743938906433,0.58114735,588.51,587.64,0.28476989]
[1743938906626,0.58114735,588.5,587.65,0.28476989]
[1743938906829,0.58114735,588.49,587.64,0.28476989]
[1743938907030,0.534,588.55,587.63,1.61354081]